bitfinex/quotes_SOLUSD_20250604
["timestamp","ask_amount","ask_price","bid_price","bid_amount"]
[1749079312769,15.04441086,152.96,152.95,52.16]
[1749079314078,30.08882172,152.96,152.95,11.08]
[1749079314382,19.07613357,152.95,152.84,2.5044208]
[1749079314593,15.04441086,152.86,152.85,67.04]
[1749079314974,15.04441086,152.87,152.85,67.04]
[1749079315905,15.04441086,152.88,152.85,67.04]
[1749079317077,15.04441086,152.88,152.85,26.0]
[1749079317379,15.04441086,152.88,152.86,41.02]
[1749079317703,15.04441086,152.89,152.87,41.02]
[1749079320594,148.1,152.94,152.87,41.02]
[1749079320595,15.04441086,152.88,152.87,41.02]
[1749079320777,15.04441086,152.89,152.87,41.02]
[1749079321214,15.04441086,152.9,152.87,41.02]
[1749079321714,148.1,152.94,152.87,41.02]
[1749079321893,15.04441086,152.9,152.87,41.02]
[1749079323803,15.04441086,152.92,152.87,56.06441086]
[1749079324010,15.04441086,152.92,152.88,37.6]
[1749079324299,15.04441086,152.91,152.88,48.68]
[1749079325086,15.04441086,152.9,152.88,48.68]
[1749079327884,15.04441086,152.89,152.88,48.68]
[1749079328401,15.04441086,152.9,152.88,48.68]
[1749079331705,148.1,152.94,152.88,63.72441086]
[1749079331910,15.04441086,152.92,152.88,63.72441086]
[1749079332290,15.04441086,152.92,152.88,48.68]
[1749079332890,15.04441086,152.89,152.88,48.68]
[1749079333093,15.04441086,152.9,152.88,89.56]
[1749079334086,15.04441086,152.92,152.88,89.56]
[1749079335224,15.04441086,152.91,152.88,89.56]
[1749079335396,15.04441086,152.9,152.88,89.56]
[1749079336008,15.04441086,152.9,152.89,40.82]
[1749079338595,6.2532,152.99,152.9,18.64964886]
[1749079338819,15.04441086,152.95,152.9,33.69405972]
[1749079339396,15.04441086,152.94,152.9,33.69405972]
[1749079341411,15.04441086,152.91,152.89,7.76431379]
[1749079341722,15.04441086,152.9,152.88,48.68]
[1749079341895,1.5646,152.95,152.88,48.68]
[1749079341896,15.04441086,152.89,152.88,48.68]
[1749079342092,1.5646,152.95,152.88,48.68]
[1749079342093,15.04441086,152.9,152.88,48.68]
[1749079342617,1.5646,152.95,152.89,40.76]
[1749079342810,1.5646,152.95,152.88,48.68]
[1749079342811,15.04441086,152.9,152.88,48.68]
[1749079343004,15.04441086,152.9,152.89,40.76]
[1749079343713,15.04441086,152.9,152.88,48.68]
[1749079343921,15.04441086,152.9,152.89,40.74]
[1749079344302,15.04441086,152.9,152.88,11.08]
[1749079344626,15.04441086,152.89,152.88,11.08]
[1749079344797,15.04441086,152.89,152.88,51.82]
[1749079345421,15.04441086,152.89,152.88,51.8]
[1749079346621,15.04441086,152.89,152.88,11.08]
[1749079346804,30.08882172,152.89,152.88,11.08]
[1749079347429,30.08882172,152.89,152.88,51.82]
[1749079348129,15.04441086,152.89,152.88,51.82]
[1749079348338,15.04441086,152.89,152.88,11.08]
[1749079348631,15.04441086,152.89,152.88,51.8]
[1749079349051,26.0,152.9,152.88,51.8]
[1749079349202,15.04441086,152.89,152.88,51.8]
[1749079354033,15.04441086,152.92,152.88,51.8]
[1749079354414,15.04441086,152.91,152.9,26.0]
[1749079354733,15.04441086,152.91,152.88,51.8]
[1749079359812,15.04441086,152.92,152.88,66.84441086]
[1749079361132,15.04441086,152.92,152.88,104.44441086]
[1749079364028,15.04441086,152.93,152.89,15.04441086]
[1749079366014,15.04441086,152.94,152.9,10.74]
[1749079367153,15.04441086,152.92,152.9,10.74]
[1749079367326,15.04441086,152.91,152.9,10.74]
[1749079367639,15.04441086,152.91,152.9,51.28]
[1749079370244,15.04441086,152.92,152.9,51.28]
[1749079370452,15.04441086,152.93,152.9,51.28]
[1749079370652,15.04441086,152.93,152.91,10.74]
[1749079370862,15.04441086,152.94,152.91,10.74]
[1749079374035,15.04441086,152.96,152.92,15.04441086]
[1749079374239,15.04441086,152.96,152.91,25.78441086]
[1749079374745,15.04441086,152.95,152.91,25.78441086]
[1749079374943,174.1,152.98,152.91,25.78441086]
[1749079375467,15.04441086,152.96,152.92,15.04441086]
[1749079376159,15.04441086,152.96,152.91,25.78441086]
[1749079377365,15.04441086,152.95,152.91,25.78441086]
[1749079378039,15.04441086,152.95,152.91,10.74]
[1749079378462,15.04441086,152.94,152.91,10.74]
[1749079378642,15.04441086,152.92,152.91,10.74]
[1749079378842,15.04441086,152.92,152.91,51.26]
[1749079379560,15.04441086,152.92,152.91,10.74]
[1749079379767,0.28432314,152.94,152.91,51.24]
[1749079379972,15.04441086,152.92,152.91,10.74]
[1749079380150,15.04441086,152.92,152.91,51.24]
[1749079380347,15.18657243,152.92,152.91,51.26]
[1749079382056,15.18657243,152.92,152.91,51.24]
[1749079383470,41.18657243,152.92,152.91,51.24]
[1749079383669,41.04441086,152.92,152.91,51.24]
[1749079383975,26.0,152.92,152.91,51.24]
[1749079385145,26.0,152.92,152.88,37.6]
[1749079385146,26.0,152.89,152.88,37.6]
[1749079385373,41.04441086,152.89,152.88,48.34]
[1749079385671,41.18657243,152.89,152.88,88.9]
[1749079386458,41.04441086,152.89,152.88,48.34]
[1749079386653,41.04441086,152.89,152.88,88.88]
[1749079387228,41.04441086,152.89,152.88,88.9]
[1749079388563,41.18657243,152.89,152.88,88.9]
[1749079388961,41.18657243,152.89,152.88,88.88]
[1749079390981,41.47089557,152.89,152.88,88.86]
[1749079391690,41.18657243,152.89,152.88,88.86]
[1749079392266,15.18657243,152.89,152.88,88.84]
[1749079393382,41.18657243,152.89,152.88,88.84]
[1749079395182,15.18657243,152.89,152.88,88.84]
[1749079395383,15.18657243,152.89,152.88,51.24]
[1749079396362,15.04441086,152.89,152.88,51.24]
[1749079396689,15.04441086,152.9,152.88,51.24]
[1749079396876,15.04441086,152.89,152.88,51.24]
[1749079399794,148.1,152.91,152.88,66.28441086]
[1749079400001,15.04441086,152.94,152.9,15.04441086]
[1749079400171,15.04441086,152.94,152.91,40.46]
[1749079402702,15.04441086,152.93,152.91,40.46]
[1749079403183,15.04441086,152.93,152.88,48.36]
[1749079403388,15.04441086,152.93,152.89,55.50441086]
[1749079403584,15.04441086,152.93,152.89,40.46]
[1749079403790,15.04441086,152.93,152.89,55.50441086]
[1749079404189,15.04441086,152.93,152.89,40.46]
[1749079404791,15.04441086,152.93,152.89,55.50441086]
[1749079408403,174.24216157,152.96,152.9,15.04441086]
[1749079408576,163.14441086,152.96,152.92,15.04441086]
[1749079408904,15.04441086,152.98,152.94,15.04441086]
[1749079409078,15.04441086,152.98,152.95,51.14]
[1749079409716,15.04441086,152.97,152.95,51.14]
[1749079416624,15.04441086,152.96,152.95,51.14]
[1749079418821,15.04441086,152.97,152.95,51.14]
[1749079419227,0.14216157,152.99,152.95,51.14]
[1749079419409,15.04441086,152.97,152.95,51.14]
[1749079421707,15.04441086,152.96,152.95,51.14]
[1749079421923,15.04441086,152.96,152.95,10.68]
[1749079421924,15.18657243,152.96,152.95,10.68]
[1749079422235,15.18657243,152.96,152.95,51.12]
[1749079422807,15.04441086,152.96,152.95,51.12]
[1749079423211,0.42648471,152.99,152.95,51.12]
[1749079423430,15.04441086,152.96,152.95,51.12]
[1749079426148,0.42648471,152.99,152.95,51.12]
[1749079426311,15.04441086,152.97,152.95,51.12]
[1749079426812,15.04441086,152.96,152.95,51.12]
[1749079427006,0.14216157,152.99,152.95,51.12]
[1749079427239,26.0,153.0,152.95,51.12]
[1749079427432,15.04441086,152.97,152.95,51.12]
[1749079428310,26.0,153.0,152.95,51.12]
[1749079428627,15.04441086,152.98,152.95,51.12]
[1749079429216,26.0,153.0,152.95,51.12]
[1749079429627,15.04441086,152.98,152.95,51.12]
[1749079431417,15.04441086,152.99,152.95,51.12]
[1749079432131,148.1,153.01,152.95,51.12]
[1749079432330,15.04441086,152.99,152.95,51.12]
[1749079433837,15.04441086,152.99,152.95,66.16441086]
[1749079434033,15.04441086,152.98,152.95,51.12]
[1749079435733,15.04441086,153.0,152.96,15.04441086]
[1749079436917,163.14441086,153.01,152.96,15.04441086]
[1749079437426,1.5862,153.04,152.97,15.04441086]
[1749079437635,15.04441086,153.01,152.98,40.44]
[1749079438334,1.5862,153.04,152.98,40.44]
[1749079438537,15.04441086,153.01,152.98,40.44]
[1749079440345,1.5862,153.04,152.98,40.44]
[1749079440522,15.04441086,153.01,152.98,40.44]
[1749079441026,15.04441086,153.0,152.98,40.44]
[1749079441433,15.04441086,153.01,152.98,40.44]
[1749079441632,15.04441086,153.02,152.98,55.48441086]
[1749079442728,15.04441086,153.0,152.99,40.44]
[1749079444225,15.328734,153.04,152.99,40.44]
[1749079444426,15.328734,153.04,153.0,10.62]
[1749079444639,15.04441086,153.01,153.0,10.62]
[1749079448057,15.47089557,153.01,153.0,10.62]
[1749079448266,15.47089557,153.01,153.0,51.04]
[1749079450371,1.5803,153.02,153.0,51.04]
[1749079450571,15.04441086,153.01,153.0,51.04]
[1749079452856,148.1,153.03,153.0,51.04]
[1749079453061,15.04441086,153.01,153.0,51.04]
[1749079454456,15.04441086,153.02,153.0,51.04]
[1749079454637,15.04441086,153.01,153.0,51.04]
[1749079455145,15.04441086,153.02,153.0,51.04]
[1749079460544,15.04441086,153.01,153.0,51.04]
[1749079460763,148.1,153.03,153.0,51.04]
[1749079460935,148.1,153.03,153.0,66.08441086]
[1749079461134,26.14216157,153.08,153.02,15.04441086]
[1749079461135,15.04441086,153.06,153.02,15.04441086]
[1749079461351,15.04441086,153.06,153.03,40.48]
[1749079461556,15.04441086,153.05,153.03,40.48]
[1749079467344,15.04441086,153.04,153.0,48.2]
[1749079467549,15.04441086,153.02,153.01,40.44]
[1749079467749,15.04441086,153.03,153.01,40.44]
[1749079468263,15.04441086,153.04,153.01,40.44]
[1749079468655,15.04441086,153.05,153.01,40.44]
[1749079471484,15.04441086,153.05,153.01,55.48441086]
[1749079473351,15.04441086,153.05,153.01,40.44]
[1749079473551,15.04441086,153.05,153.01,55.48441086]
[1749079476174,15.04441086,153.06,153.02,15.04441086]
[1749079476968,148.1,153.07,153.04,15.04441086]
[1749079477170,148.1,153.07,153.05,51.04]
[1749079477477,163.14441086,153.07,153.05,51.04]
[1749079479773,148.1,153.07,153.05,51.04]
[1749079479952,163.14441086,153.07,153.05,51.04]
[1749079480358,15.04441086,153.06,153.05,51.04]
[1749079480965,163.14441086,153.07,153.05,51.04]
[1749079481977,148.1,153.07,153.05,51.04]
[1749079482301,15.04441086,153.08,153.05,51.04]
[1749079482990,163.428734,153.12,153.05,66.08441086]
[1749079482991,26.0,153.09,153.05,66.08441086]
[1749079483164,41.04441086,153.09,153.05,66.08441086]
[1749079483363,15.04441086,153.09,153.05,66.08441086]
[1749079486877,41.04441086,153.09,153.05,51.04]
[1749079487076,15.04441086,153.08,153.05,51.04]
[1749079488093,26.0,153.09,153.05,66.08441086]
[1749079488394,41.04441086,153.09,153.05,66.08441086]
[1749079490275,41.04441086,153.11,153.06,15.04441086]
[1749079491080,41.04441086,153.11,153.07,15.04441086]
[1749079491397,41.04441086,153.11,153.08,40.4]
[1749079491893,26.0,153.11,153.08,40.4]
[1749079492261,148.1,153.12,153.08,40.4]
[1749079492467,163.14441086,153.12,153.08,40.4]
[1749079493171,15.04441086,153.11,153.08,40.4]
[1749079493576,15.04441086,153.1,153.08,40.4]
[1749079493770,15.04441086,153.11,153.08,40.4]
[1749079493974,163.14441086,153.12,153.08,55.44441086]
[1749079495003,15.04441086,153.12,153.08,55.44441086]
[1749079496202,15.04441086,153.12,153.08,40.4]
[1749079496498,15.04441086,153.11,153.08,40.4]
[1749079500786,15.04441086,153.09,153.07,37.56]
[1749079500989,15.04441086,153.08,153.07,37.56]
[1749079501192,15.04441086,153.08,153.07,77.96]
[1749079501595,1.5981,153.12,153.07,77.96]
[1749079501804,15.04441086,153.09,153.08,40.4]
[1749079502100,15.04441086,153.09,153.08,51.02]
[1749079502310,15.04441086,153.11,153.08,51.02]
[1749079502518,15.04441086,153.1,153.08,51.02]
[1749079502874,15.04441086,153.09,153.08,51.02]
[1749079506097,15.04441086,153.09,153.08,10.62]
[1749079506298,15.04441086,153.09,153.08,51.02]
[1749079511114,15.04441086,153.09,153.08,10.62]
[1749079511295,15.04441086,153.09,153.08,51.02]
[1749079512390,15.18657243,153.09,153.08,51.02]
[1749079513294,15.04441086,153.09,153.08,51.02]
[1749079513811,15.18657243,153.09,153.08,10.62]
[1749079513986,15.18657243,153.09,153.08,51.02]
[1749079517018,1.6118,153.11,153.08,51.02]
[1749079517321,15.04441086,153.09,153.08,51.02]
[1749079521537,0.14216157,153.11,153.08,51.02]
[1749079521743,15.04441086,153.09,153.08,51.02]
[1749079521925,15.04441086,153.1,153.08,51.02]
[1749079523447,15.04441086,153.11,153.08,51.02]
[1749079524642,163.14441086,153.14,153.1,15.04441086]
[1749079524819,163.14441086,153.14,153.11,40.4]
[1749079525010,148.1,153.14,153.11,55.44441086]
[1749079525220,148.1,153.14,153.12,15.04441086]
[1749079525544,148.1,153.14,153.13,92.06441086]
[1749079525747,15.04441086,153.18,153.13,92.06441086]
[1749079525955,3.72123704,153.2,153.16,41.04441086]
[1749079526241,148.1,153.22,153.16,41.04441086]
[1749079526242,163.14441086,153.22,153.17,55.44441086]
[1749079526429,163.14441086,153.22,153.18,10.62]
[1749079526738,15.04441086,153.21,153.19,40.4]
[1749079528826,15.04441086,153.2,153.19,40.4]
[1749079533437,18.933972,153.25,153.19,40.4]
[1749079533747,15.04441086,153.23,153.19,55.44441086]
[1749079533942,148.1,153.26,153.2,15.04441086]
[1749079534154,15.04441086,153.24,153.21,40.38]
[1749079534444,163.14441086,153.26,153.22,15.04441086]
[1749079534652,163.14441086,153.26,153.23,51.0]
[1749079534850,15.04441086,153.25,153.23,51.0]
[1749079535038,163.14441086,153.26,153.23,51.0]
[1749079535629,162.64441086,153.26,153.23,51.0]
[1749079536032,15.04441086,153.25,153.23,51.0]
[1749079539341,15.04441086,153.24,153.23,10.62]
[1749079539651,15.04441086,153.24,153.23,50.98]
[1749079546827,19.07613357,153.27,153.23,50.98]
[1749079547029,15.04441086,153.24,153.23,50.98]
[1749079550053,0.14216157,153.27,153.23,50.98]
[1749079550232,15.04441086,153.25,153.23,50.98]
[1749079550632,15.04441086,153.24,153.23,50.98]
[1749079551153,15.18657243,153.28,153.23,50.98]
[1749079551362,15.04441086,153.24,153.23,50.98]
[1749079554132,15.18657243,153.28,153.23,50.98]
[1749079554339,15.04441086,153.24,153.23,50.98]
[1749079560753,15.04441086,153.24,153.23,10.62]
[1749079561048,15.18657243,153.24,153.23,10.62]
[1749079561263,40.7884173,153.24,153.23,10.62]
[1749079561654,34.262706,153.24,153.23,50.96]
[1749079562767,34.262706,153.24,153.23,10.62]
[1749079562939,34.262706,153.24,153.23,50.96]
[1749079566055,34.262706,153.24,153.23,10.62]
[1749079566264,26.0,153.25,153.23,50.96]
[1749079566468,33.83622129,153.24,153.23,50.96]
[1749079566774,34.262706,153.24,153.23,50.96]
[1749079566974,34.262706,153.24,153.23,10.62]
[1749079567149,44.79181043,153.22,153.21,10.6]
[1749079567353,74.88063215,153.22,153.21,50.94]
[1749079567660,59.83622129,153.22,153.21,50.94]
[1749079567849,3.70660873,153.25,153.23,26.0]
[1749079568055,6.122,153.37,153.24,35.75823438]
[1749079568248,15.04441086,153.3,153.25,56.02441086]
[1749079568467,15.04441086,153.31,153.25,56.02441086]
[1749079568765,15.04441086,153.31,153.26,15.04441086]
[1749079568973,3.39525807,153.36,153.25,40.98]
[1749079569148,15.04441086,153.35,153.3,15.04441086]
[1749079569348,15.04441086,153.34,153.31,40.98]
[1749079570283,15.04441086,153.32,153.31,40.98]
[1749079570467,15.04441086,153.33,153.31,40.98]
[1749079570777,15.04441086,153.34,153.31,40.98]
[1749079570988,15.04441086,153.33,153.31,40.98]
[1749079573356,0.14216157,153.36,153.31,40.98]
[1749079573558,0.14216157,153.36,153.26,26.0]
[1749079573559,15.04441086,153.33,153.28,26.0]
[1749079573775,0.28432314,153.36,153.25,26.0]
[1749079573776,15.04441086,153.3,153.25,26.0]
[1749079573965,15.04441086,153.3,153.26,55.96441086]
[1749079574278,15.04441086,153.31,153.27,10.94]
[1749079574920,15.18657243,153.32,153.27,25.98441086]
[1749079575395,15.04441086,153.3,153.28,40.9]
[1749079575584,15.04441086,153.32,153.28,55.94441086]
[1749079580588,15.04441086,153.32,153.28,40.9]
[1749079580791,15.04441086,153.32,153.28,55.94441086]
[1749079580986,15.04441086,153.33,153.29,15.04441086]
[1749079581177,15.04441086,153.32,153.28,55.94441086]
[1749079581682,15.04441086,153.31,153.28,40.9]
[1749079581999,15.04441086,153.3,153.28,40.9]
[1749079582384,15.04441086,153.3,153.29,40.82]
[1749079583802,15.04441086,153.3,153.27,10.94]
[1749079584012,15.04441086,153.28,153.27,10.94]
[1749079584508,15.04441086,153.28,153.27,51.72]
[1749079588490,15.04441086,153.28,153.27,51.68]
[1749079589087,149.7025,153.31,153.27,51.68]
[1749079589289,15.04441086,153.29,153.27,51.68]
[1749079592305,15.04441086,153.28,153.27,51.68]
[1749079593400,0.14216157,153.3,153.27,51.68]
[1749079593716,15.04441086,153.28,153.27,51.68]
[1749079597298,15.04441086,153.29,153.27,51.68]
[1749079599329,15.04441086,153.28,153.27,51.68]
[1749079601932,15.04441086,153.29,153.27,51.68]
[1749079602101,26.0,153.28,153.27,51.68]
[1749079602803,15.04441086,153.29,153.27,51.68]
[1749079604731,15.04441086,153.3,153.27,51.68]
[1749079606716,15.04441086,153.29,153.27,51.68]
[1749079612325,15.04441086,153.29,153.28,40.48]
[1749079614119,15.18657243,153.29,153.24,15.04441086]
[1749079614328,15.04441086,153.28,153.25,51.18]
[1749079614548,15.04441086,153.27,153.25,10.72]
[1749079614845,15.04441086,153.27,153.26,40.46]
[1749079617242,15.04441086,153.27,153.21,36.27935645]
[1749079617243,0.14216157,153.26,153.21,8.62785645]
[1749079617538,19.21829514,153.26,153.24,10.72]
[1749079617707,19.21829514,153.26,153.2,37.52]
[1749079617708,0.28432314,153.24,153.2,48.24]
[1749079617909,0.28432314,153.24,153.21,40.46]
[1749079618132,0.28432314,153.24,153.22,40.46]
[1749079618133,19.21829514,153.24,153.22,40.46]
[1749079618343,19.21829514,153.24,153.2,48.24]
[1749079618516,0.28432314,153.21,153.2,48.24]
[1749079618723,30.37314486,153.21,153.2,88.74]
[1749079618915,30.37314486,153.21,153.2,51.22]
[1749079619313,15.328734,153.21,153.2,51.22]
[1749079620308,41.328734,153.21,153.2,51.22]
[1749079620525,60.262706,153.21,153.2,51.22]
[1749079620717,60.262706,153.21,153.2,51.2]
[1749079624259,26.28432314,153.21,153.2,51.2]
[1749079624461,41.04441086,153.21,153.2,51.2]
[1749079624764,41.18657243,153.21,153.2,51.2]
[1749079627830,41.18657243,153.21,153.2,51.16]
[1749079629971,26.0,153.21,153.2,51.16]
[1749079630957,41.04441086,153.21,153.2,51.16]
[1749079632151,15.04441086,153.22,153.2,51.16]
[1749079632551,15.04441086,153.21,153.2,51.16]
[1749079633652,15.04441086,153.22,153.2,51.16]
[1749079635081,0.28432314,153.24,153.2,51.16]
[1749079635376,174.38432314,153.25,153.2,51.16]
[1749079635377,174.1,153.25,153.2,66.20441086]
[1749079635578,15.04441086,153.22,153.2,10.72]
[1749079635760,15.04441086,153.22,153.21,41.8]
[1749079636368,15.04441086,153.23,153.21,41.8]
[1749079637381,174.1,153.25,153.21,41.8]
[1749079637382,15.04441086,153.22,153.21,41.8]
[1749079637681,15.04441086,153.22,153.21,52.46]
[1749079637861,15.18657243,153.22,153.21,52.46]
[1749079638259,15.18657243,153.22,153.21,51.16]
[1749079642196,15.18657243,153.22,153.15,25.31536731]
[1749079642197,0.14216157,153.21,153.15,25.31536731]
[1749079642530,19.21829514,153.19,153.16,10.66]
[1749079642670,15.04441086,153.17,153.13,10.66]
[1749079642881,19.21829514,153.19,153.14,40.46]
[1749079643889,15.04441086,153.15,153.13,10.66]
[1749079644090,15.04441086,153.14,153.13,10.66]
[1749079644289,15.04441086,153.14,153.13,51.12]
[1749079644491,15.04441086,153.14,153.13,10.66]
[1749079644783,15.04441086,153.14,153.13,51.12]
[1749079645187,15.04441086,153.14,153.13,10.66]
[1749079645392,15.04441086,153.14,153.13,51.12]
[1749079646694,15.18657243,153.14,153.13,51.12]
[1749079647505,15.18657243,153.14,153.13,51.1]
[1749079647695,15.04441086,153.15,153.13,51.1]
[1749079648282,0.14216157,153.16,153.13,51.1]
[1749079648579,15.18657243,153.16,153.13,51.1]
[1749079648788,15.04441086,153.15,153.14,1.3]
[1749079651876,15.18657243,153.15,153.14,1.3]
[1749079652697,15.04441086,153.15,153.13,51.1]
[1749079652886,15.04441086,153.14,153.13,51.1]
[1749079654405,148.1,153.18,153.13,51.1]
[1749079654583,15.04441086,153.17,153.13,66.14441086]
[1749079656001,15.04441086,153.17,153.13,51.1]
[1749079656191,148.1,153.18,153.13,51.1]
[1749079656192,15.04441086,153.15,153.13,51.1]
[1749079661803,15.04441086,153.14,153.13,51.1]
[1749079662998,15.04441086,153.14,153.13,10.66]
[1749079663197,15.04441086,153.15,153.13,51.04]
[1749079664015,148.1,153.18,153.13,51.04]
[1749079664216,148.1,153.18,153.15,15.04441086]
[1749079664511,148.1,153.18,153.17,15.04441086]
[1749079664713,15.04441086,153.21,153.17,15.04441086]
[1749079664893,15.04441086,153.21,153.18,51.04]
[1749079665810,15.04441086,153.2,153.18,51.04]
[1749079667199,15.04441086,153.19,153.18,51.04]
[1749079668107,15.04441086,153.2,153.18,51.04]
[1749079669821,15.04441086,153.21,153.18,51.04]
[1749079672609,15.04441086,153.22,153.18,66.08441086]
[1749079673318,15.04441086,153.21,153.18,51.04]
[1749079673523,15.04441086,153.22,153.18,66.08441086]
[1749079675723,15.04441086,153.22,153.18,51.04]
[1749079677320,15.04441086,153.21,153.18,51.04]
[1749079680630,148.1,153.23,153.18,51.04]
[1749079680801,15.04441086,153.21,153.18,51.04]
[1749079681209,15.04441086,153.22,153.18,66.08441086]
[1749079682301,148.1,153.23,153.2,15.04441086]
[1749079682508,148.1,153.23,153.21,40.38]
[1749079682713,163.14441086,153.23,153.22,40.38]
[1749079683119,148.1,153.23,153.22,40.38]
[1749079683326,163.14441086,153.23,153.22,40.38]
[1749079685204,163.28657243,153.23,153.15,63.54]
[1749079685432,15.04441086,153.2,153.16,51.0]
[1749079685607,15.04441086,153.2,153.16,10.62]
[1749079685808,15.04441086,153.2,153.17,40.38]
[1749079686221,15.04441086,153.2,153.18,40.38]
[1749079686419,15.04441086,153.21,153.19,40.38]
[1749079687812,15.04441086,153.21,153.2,40.38]
[1749079689318,15.18657243,153.21,153.2,40.38]
[1749079689637,26.0,153.17,153.16,10.62]
[1749079689834,41.04441086,153.17,153.16,51.0]
[1749079690338,15.04441086,153.17,153.16,50.98]
[1749079692543,15.04441086,153.17,153.16,10.62]
[1749079692734,15.04441086,153.17,153.16,51.0]
[1749079692735,15.18657243,153.17,153.16,51.0]
[1749079694116,15.18657243,153.17,153.16,10.62]
[1749079694320,15.18657243,153.17,153.16,51.0]
[1749079695915,0.14216157,153.17,153.16,51.0]
[1749079696113,15.18657243,153.17,153.16,51.0]
[1749079697226,15.328734,153.17,153.16,51.0]
[1749079698117,163.428734,153.17,153.16,51.0]
[1749079701518,163.428734,153.17,153.16,10.62]
[1749079701724,163.428734,153.17,153.16,51.0]
[1749079703149,163.28657243,153.17,153.16,51.0]
[1749079703353,148.24216157,153.17,153.16,51.0]
[1749079703553,163.28657243,153.17,153.16,51.0]
[1749079703928,163.14441086,153.17,153.16,51.0]
[1749079705128,15.04441086,153.21,153.16,66.04441086]
[1749079705436,15.04441086,153.19,153.16,51.0]
[1749079707221,148.1,153.22,153.16,51.0]
[1749079707456,148.1,153.22,153.17,15.04441086]
[1749079707457,0.14216157,153.21,153.17,15.04441086]
[1749079707751,163.14441086,153.22,153.18,40.38]
[1749079707925,0.14216157,153.21,153.18,40.38]
[1749079708552,148.1,153.22,153.19,15.04441086]
[1749079708847,163.14441086,153.22,153.2,40.38]
[1749079709023,15.04441086,153.22,153.21,10.62]
[1749079709568,0.28432314,153.24,153.21,10.62]
[1749079709852,15.04441086,153.22,153.21,10.62]
[1749079710046,15.04441086,153.22,153.21,51.0]
[1749079710258,15.18657243,153.22,153.21,51.0]
[1749079710462,15.328734,153.22,153.21,51.0]
[1749079711034,34.262706,153.22,153.21,50.98]
[1749079711242,34.262706,153.22,153.21,10.62]
[1749079711448,34.262706,153.22,153.21,50.98]
[1749079714351,34.262706,153.22,153.21,10.62]
[1749079714549,34.262706,153.22,153.21,50.98]
[1749079714747,34.262706,153.22,153.21,40.36]
[1749079719573,15.328734,153.22,153.21,40.36]
[1749079720469,15.55502141,153.22,153.21,40.36]
[1749079721171,34.20467027,153.22,153.21,40.36]
[1749079721857,0.14216157,153.2,153.18,10.62]
[1749079722047,1.5688,153.22,153.19,40.36]
[1749079722364,15.18657243,153.2,153.19,40.36]
[1749079725467,15.328734,153.2,153.19,40.36]
[1749079725672,49.30711686,153.2,153.19,40.36]
[1749079725855,0.28432314,153.19,153.18,10.62]
[1749079726055,15.328734,153.19,153.18,50.98]
[1749079727173,34.262706,153.19,153.18,10.62]
[1749079727473,45.21829514,153.16,153.15,10.6]
[1749079727645,61.785906,153.16,153.15,10.6]
[1749079727849,0.28432314,153.14,153.12,37.54]
[1749079728049,0.28432314,153.14,153.13,40.36]
[1749079729174,34.262706,153.14,153.13,40.36]
[1749079730370,15.328734,153.14,153.13,40.36]
[1749079733449,15.328734,153.14,153.12,37.54]
[1749079733653,0.28432314,153.14,153.13,40.36]
[1749079734766,41.328734,153.14,153.13,40.36]
[1749079740081,15.328734,153.14,153.13,40.36]
[1749079740915,15.04441086,153.14,153.13,40.36]
[1749079744261,15.18657243,153.14,153.13,40.36]
[1749079745792,15.18657243,153.14,153.07,58.71191086]
[1749079746091,15.04441086,153.12,153.08,10.6]
[1749079746391,15.04441086,153.13,153.09,15.04441086]